bitfinex-derivatives/quotes_BTCF0:USTF0_20241019
["timestamp","ask_amount","ask_price","bid_price","bid_amount"]
[1729356642244,0.066236,68141.0,68140.0,0.57317656]
[1729356642749,0.10951209,68141.0,68140.0,0.25160035]
[1729356649546,0.10952999,68141.0,68140.0,0.25160035]
[1729356650638,0.066236,68141.0,68140.0,0.5731174]
[1729356651243,0.066236,68141.0,68140.0,0.67581789]
[1729356651443,0.066236,68141.0,68140.0,0.5731174]
[1729356654148,0.066236,68141.0,68140.0,0.6903718]
[1729356654349,0.066236,68141.0,68140.0,0.57312724]
[1729356654543,0.066236,68141.0,68140.0,0.69038164]
[1729356655557,0.066236,68141.0,68140.0,0.57312724]
[1729356655753,0.066236,68141.0,68140.0,0.69055605]
[1729356656758,0.066236,68141.0,68140.0,0.57312724]
[1729356657063,0.066236,68141.0,68140.0,0.69057077]
[1729356657766,0.066236,68141.0,68140.0,0.25160035]
[1729356657767,0.16003916,68141.0,68140.0,0.25160035]
[1729356659163,0.16004588,68141.0,68140.0,0.25160035]
[1729356664671,0.16004588,68141.0,68140.0,0.21970035]
[1729356665777,0.16004588,68141.0,68140.0,0.65858771]
[1729356665778,0.066236,68141.0,68140.0,0.65858771]
[1729356666080,0.066236,68141.0,68140.0,0.54114418]
[1729356666480,0.066236,68141.0,68140.0,0.65859111]
[1729356668782,0.066236,68141.0,68140.0,0.54114418]
[1729356668985,0.066236,68141.0,68140.0,0.65859899]
[1729356669383,0.066236,68141.0,68140.0,0.54114418]
[1729356671476,0.066236,68141.0,68140.0,0.41674039]
[1729356673787,0.066236,68141.0,68140.0,0.41687453]
[1729356673986,0.427036,68141.0,68140.0,0.19717418]
[1729356674176,0.427036,68141.0,68140.0,0.17794236]
[1729356675290,0.427036,68141.0,68140.0,0.0898921]
[1729356678789,0.787836,68141.0,68140.0,0.0898921]
[1729356680883,0.787836,68141.0,68129.0,0.033]
[1729356680884,0.066046,68130.0,68129.0,0.033]
[1729356681283,0.066046,68130.0,68129.0,0.25256539]
[1729356681284,0.066246,68130.0,68129.0,0.25256539]
[1729356683093,0.066246,68130.0,68129.0,0.2794521]
[1729356683487,0.066246,68130.0,68129.0,0.25256539]
[1729356687896,0.066246,68130.0,68129.0,0.45006745]
[1729356688291,0.09324164,68130.0,68129.0,0.41706745]
[1729356692400,0.066246,68130.0,68129.0,0.41706745]
[1729356695798,0.066246,68130.0,68129.0,0.21956539]
[1729356698303,0.10910599,68130.0,68123.0,0.0304]
[1729356698598,0.066252,68124.0,68123.0,0.0304]
[1729356698795,0.155852,68124.0,68123.0,0.0304]
[1729356702999,0.155852,68124.0,68123.0,0.35350611]
[1729356706210,0.155852,68124.0,68123.0,0.4561941]
[1729356707407,0.155852,68124.0,68123.0,0.33114699]
[1729356707603,0.066252,68124.0,68123.0,0.4482318]
[1729356707910,0.155852,68124.0,68123.0,0.67592787]
[1729356708406,0.155852,68124.0,68123.0,0.4482318]
[1729356708608,0.066252,68124.0,68123.0,0.4482318]
[1729356708796,0.155852,68124.0,68123.0,0.4482318]
[1729356709002,0.155852,68124.0,68123.0,0.44805773]
[1729356710204,0.066252,68124.0,68123.0,0.44805773]
[1729356712203,0.066252,68124.0,68123.0,0.55074572]
[1729356712408,0.066252,68124.0,68123.0,0.67569861]
[1729356713107,0.066252,68124.0,68123.0,0.55074572]
[1729356713305,0.066252,68124.0,68123.0,0.67570426]
[1729356713612,0.066252,68124.0,68123.0,0.57301627]
[1729356713811,0.066252,68124.0,68123.0,0.67571156]
[1729356714211,0.066252,68124.0,68123.0,0.57301627]
[1729356714516,0.066252,68124.0,68123.0,0.2501728]
[1729356714700,0.066252,68124.0,68123.0,0.57305353]
[1729356717204,0.066252,68124.0,68123.0,0.69051226]
[1729356717409,0.066252,68124.0,68123.0,0.57305353]
[1729356717813,0.10915272,68124.0,68123.0,0.36763153]
[1729356718017,0.10915272,68124.0,68123.0,0.2501728]
[1729356718629,0.10919181,68124.0,68123.0,0.2501728]
[1729356720811,0.10919181,68124.0,68123.0,0.3162258]
[1729356721922,0.10938505,68124.0,68123.0,0.3162258]
[1729356722424,0.10938505,68124.0,68123.0,0.2501728]
[1729356724915,0.066252,68124.0,68123.0,0.57251914]
[1729356726833,0.066252,68124.0,68123.0,0.71457875]
[1729356728225,0.066252,68124.0,68123.0,0.57251914]
[1729356733020,0.10910429,68124.0,68123.0,0.2501728]
[1729356739922,0.066252,68124.0,68123.0,0.57313745]
[1729356747928,0.066252,68124.0,68123.0,0.37516517]
[1729356748228,0.066252,68124.0,68123.0,0.2501728]
[1729356752536,0.066049,68128.0,68123.0,1.6513328]
[1729356752740,0.3608,68141.0,68124.0,0.05871297]
[1729356752741,0.1219,68139.0,68124.0,0.05871297]
[1729356752942,0.066042,68135.0,68133.0,0.0002]
[1729356753137,0.066042,68135.0,68133.0,0.0326]
[1729356753349,0.066042,68135.0,68134.0,0.22140608]
[1729356753735,0.3608,68141.0,68134.0,0.22140608]
[1729356753949,0.3608,68141.0,68135.0,0.0002]
[1729356754141,0.3608,68141.0,68140.0,0.066037]
[1729356754547,0.3608,68141.0,68140.0,0.28584815]
[1729356755237,0.3608,68141.0,68140.0,0.7088282]
[1729356755436,0.3608,68141.0,68140.0,0.58482856]
[1729356755749,0.066029,68148.0,68145.0,0.066031]
[1729356755944,0.066029,68148.0,68146.0,0.25969993]
[1729356756268,0.066029,68148.0,68147.0,0.19639993]
[1729356756652,0.066029,68148.0,68147.0,0.41706955]
[1729356757358,0.066029,68148.0,68147.0,0.31026969]
[1729356758757,0.066029,68148.0,68147.0,0.39805988]
[1729356759251,0.066029,68148.0,68147.0,0.31026969]
[1729356759655,0.066029,68148.0,68147.0,0.39805988]
[1729356760246,0.066029,68148.0,68147.0,0.31026969]
[1729356763358,0.066029,68148.0,68147.0,0.22066962]
[1729356778157,0.066029,68148.0,68147.0,0.39751645]
[1729356778363,0.066029,68148.0,68147.0,0.30972626]
[1729356779060,0.066029,68148.0,68147.0,0.30976775]
[1729356780358,0.066029,68148.0,68147.0,0.41605783]
[1729356782361,0.066029,68148.0,68147.0,0.41642789]
[1729356786293,0.066029,68148.0,68147.0,0.30997696]
[1729356786677,1.106269,68148.0,68147.0,0.02065636]
[1729356787679,1.106269,68148.0,68142.0,0.0882624]
[1729356787680,0.066031,68146.0,68142.0,0.0002]
[1729356787880,0.426834,68143.0,68142.0,0.0002]
[1729356788080,0.427034,68143.0,68142.0,0.0882624]
[1729356788486,0.427034,68143.0,68142.0,0.0002]
[1729356788794,0.459734,68143.0,68142.0,0.0002]
[1729356789479,1.499974,68143.0,68142.0,0.07349741]
[1729356789785,1.499974,68143.0,68142.0,0.07349705]
[1729356790193,1.499974,68143.0,68142.0,0.0002]
[1729356791491,1.52582468,68143.0,68142.0,0.0002]
[1729356793296,1.56969003,68143.0,68142.0,0.0002]
[1729356793895,0.96969003,68143.0,68142.0,0.0002]
[1729356794386,1.56969003,68143.0,68142.0,0.0002]
[1729356794587,0.96969003,68143.0,68142.0,0.0002]
[1729356795885,1.56969003,68143.0,68142.0,0.0002]
[1729356796195,0.96969003,68143.0,68142.0,0.0002]
[1729356796394,1.56960821,68143.0,68142.0,0.0002]
[1729356796694,0.96960821,68143.0,68142.0,0.0002]
[1729356797193,1.56960821,68143.0,68142.0,0.0002]
[1729356797598,0.52936821,68143.0,68142.0,0.0002]
[1729356797894,1.56960821,68143.0,68142.0,0.0002]
[1729356798096,0.96960821,68143.0,68142.0,0.0002]
[1729356798295,1.56960821,68143.0,68142.0,0.0002]
[1729356800501,1.52582468,68143.0,68142.0,0.05875958]
[1729356800798,1.88662468,68143.0,68142.0,0.05875958]
[1729356801194,1.88662468,68143.0,68142.0,0.0002]
[1729356802196,1.44638468,68143.0,68142.0,0.0002]
[1729356805000,1.44638468,68143.0,68142.0,0.05876644]
[1729356806904,1.44638468,68143.0,68142.0,0.0002]
[1729356807493,0.72478468,68143.0,68142.0,0.0002]
[1729356807690,1.44638468,68143.0,68142.0,0.0002]
[1729356808310,1.59854822,68143.0,68142.0,0.0002]
[1729356809299,0.99854822,68143.0,68142.0,0.0002]
[1729356810098,0.27694822,68143.0,68142.0,0.0002]
[1729356810302,0.99854822,68143.0,68142.0,0.0002]
[1729356810708,0.99844547,68143.0,68142.0,0.0002]
[1729356812811,0.27684547,68143.0,68142.0,0.0002]
[1729356813416,0.99844547,68143.0,68142.0,0.0002]
[1729356814209,0.27684547,68143.0,68142.0,0.0002]
[1729356814510,0.99844547,68143.0,68142.0,0.0002]
[1729356814709,1.08800547,68143.0,68142.0,0.0002]
[1729356815400,0.93594468,68143.0,68142.0,0.08982512]
[1729356815808,0.93594468,68143.0,68142.0,0.07356209]
[1729356816400,0.93594468,68143.0,68142.0,0.08986274]
[1729356816601,0.21434468,68143.0,68142.0,0.08986274]
[1729356817017,0.93594468,68143.0,68142.0,0.08986274]
[1729356817702,0.21434468,68143.0,68142.0,0.08986274]
[1729356817902,0.93594468,68143.0,68142.0,0.08986274]
[1729356820211,0.93594468,68143.0,68142.0,0.08986944]
[1729356821807,0.21434468,68143.0,68142.0,0.08986944]
[1729356822114,0.93594468,68143.0,68142.0,0.08986944]
[1729356822607,0.93594468,68143.0,68142.0,0.16326399]
[1729356823299,1.03042712,68143.0,68142.0,0.0002]
[1729356824913,1.03043351,68143.0,68142.0,0.0002]
[1729356825110,0.99773351,68143.0,68142.0,0.0002]
[1729356828310,1.05557235,68143.0,68142.0,0.0002]
[1729356830311,0.90324468,68143.0,68142.0,0.08987806]
[1729356835012,0.90324468,68143.0,68142.0,0.08989089]
[1729356838424,0.99794476,68143.0,68142.0,0.0002]
[1729356839117,0.90838476,68143.0,68142.0,0.0002]
[1729356839315,0.99818094,68143.0,68142.0,0.0002]
[1729356840717,0.90862094,68143.0,68142.0,0.0002]
[1729356841014,1.05634098,68143.0,68142.0,0.0002]
[1729356843623,1.21727373,68143.0,68142.0,0.0002]
[1729356845325,1.06417743,68143.0,68142.0,0.08981952]
[1729356845623,0.90324468,68143.0,68142.0,0.08981952]
[1729356846020,0.81368468,68143.0,68142.0,0.08981952]
[1729356846222,0.90324468,68143.0,68142.0,0.08981952]
[1729356847315,0.90324468,68143.0,68142.0,0.08991122]
[1729356847519,0.18164468,68143.0,68142.0,0.08991122]
[1729356847725,0.90324468,68143.0,68142.0,0.08991122]
[1729356848523,0.18164468,68143.0,68142.0,0.08991122]
[1729356848716,0.90324468,68143.0,68142.0,0.08991122]
[1729356849724,0.54244468,68143.0,68142.0,0.08991122]
[1729356852123,0.54244468,68143.0,68142.0,0.08993337]
[1729356853416,0.54244468,68143.0,68142.0,0.04424608]
[1729356854624,0.54244468,68143.0,68142.0,0.0002]
[1729356854833,0.54244468,68143.0,68142.0,0.04424649]
[1729356855026,0.57244468,68143.0,68142.0,0.04424649]
[1729356857031,0.21164468,68143.0,68142.0,0.04424649]
[1729356857223,0.93324468,68143.0,68142.0,0.04424649]
[1729356858025,0.21164468,68143.0,68142.0,0.04424649]
[1729356858328,0.93324468,68143.0,68142.0,0.04424649]
[1729356858830,0.21164468,68143.0,68142.0,0.0002]
[1729356859036,0.93324468,68143.0,68142.0,0.0002]
[1729356859220,0.21164468,68143.0,68142.0,0.0002]
[1729356859420,0.93324468,68143.0,68142.0,0.0002]
[1729356860025,0.93324468,68143.0,68142.0,0.04424649]
[1729356860429,1.15296091,68143.0,68135.0,0.0002]
[1729356860618,0.427041,68136.0,68135.0,0.0002]
[1729356860819,0.578682,68136.0,68135.0,0.0002]
[1729356861429,0.57869605,68136.0,68135.0,0.0002]
[1729356862229,0.7396288,68136.0,68135.0,0.0002]
[1729356862436,0.57869605,68136.0,68135.0,0.0002]
[1729356866232,0.57860473,68136.0,68135.0,0.0002]
[1729356866535,0.21780473,68136.0,68135.0,0.0002]
[1729356866738,0.57860473,68136.0,68135.0,0.0002]
[1729356866933,0.21780473,68136.0,68135.0,0.0002]
[1729356867130,0.57860473,68136.0,68135.0,0.0002]
[1729356867327,0.66816473,68136.0,68135.0,0.0002]
[1729356867526,0.516601,68136.0,68135.0,0.09002523]
[1729356867936,0.54245166,68136.0,68135.0,0.09002523]
[1729356869633,0.54245166,68136.0,68135.0,0.1780802]
[1729356872029,0.54245166,68136.0,68135.0,0.09002523]
[1729356873931,0.54245166,68136.0,68135.0,0.08982523]
[1729356875342,0.54245166,68136.0,68135.0,0.17789517]
[1729356875526,0.54245166,68136.0,68135.0,0.08982523]
[1729356875730,0.54245166,68136.0,68135.0,0.17789616]
[1729356876140,0.54245166,68136.0,68135.0,0.08982523]
[1729356876326,0.54245166,68136.0,68135.0,0.1778947]
[1729356877845,0.54245166,68136.0,68135.0,0.08982523]
[1729356879148,0.54245166,68136.0,68135.0,0.19693964]
[1729356879336,0.54245166,68136.0,68135.0,0.1969454]
[1729356880534,0.54245166,68136.0,68135.0,0.19692644]
[1729356880735,0.54245166,68136.0,68135.0,0.08984027]
[1729356882642,0.69407632,68136.0,68127.0,0.0628]
[1729356882847,0.066248,68128.0,68127.0,0.0628]
[1729356883141,0.16032057,68128.0,68127.0,0.2832604]
[1729356885345,0.16014754,68128.0,68127.0,0.2832604]
[1729356886533,0.52094754,68128.0,68127.0,0.2832604]
[1729356888443,0.54706362,68128.0,68127.0,0.2832604]
[1729356889653,0.6042608,68128.0,68127.0,0.2832604]
[1729356889849,0.54706362,68128.0,68127.0,0.2832604]
[1729356890345,0.54706362,68128.0,68127.0,0.0628]
[1729356890547,0.45316408,68128.0,68127.0,0.0322]
[1729356890846,0.45316408,68128.0,68127.0,0.07624432]
[1729356891647,0.45316408,68128.0,68127.0,0.0322]
[1729356893758,0.09236408,68128.0,68127.0,0.0322]
[1729356894455,0.09236408,68128.0,68127.0,0.07622767]
[1729356894644,0.09236408,68128.0,68127.0,0.0322]
[1729356894847,0.09236408,68128.0,68127.0,0.07622645]
[1729356897456,0.09236408,68128.0,68127.0,0.0322]
[1729356897657,0.18192408,68128.0,68127.0,0.44979463]
[1729356902865,0.54272408,68128.0,68127.0,0.44979463]
[1729356903246,0.45316408,68128.0,68127.0,0.44979463]
[1729356903546,0.54272408,68128.0,68127.0,0.44979463]
[1729356905252,0.18192408,68128.0,68127.0,0.44979463]
[1729356905466,0.54272408,68128.0,68127.0,0.44979463]
[1729356907352,0.54272408,68128.0,68127.0,0.44979889]
[1729356907664,0.54272408,68128.0,68127.0,0.34249365]
[1729356908652,0.54272408,68128.0,68127.0,0.44980427]
[1729356909263,0.54272408,68128.0,68127.0,0.19733469]
[1729356911063,1.58308408,68128.0,68127.0,7e-08]
[1729356911261,1.58308408,68128.0,68121.0,0.08807807]
[1729356911262,0.066049,68127.0,68121.0,0.08807807]
[1729356911456,0.361,68122.0,68118.0,0.08807807]
[1729356911656,0.427057,68119.0,68118.0,0.08804952]
[1729356911867,0.516617,68119.0,68118.0,0.08804952]
[1729356912163,0.066058,68118.0,68117.0,0.08804952]
[1729356912366,0.066258,68118.0,68117.0,0.08804952]
[1729356912573,0.05116041,68118.0,68116.0,0.08804952]
[1729356912760,0.11015078,68117.0,68116.0,0.08804952]
[1729356913175,0.21914024,68117.0,68116.0,0.08804952]
[1729356916668,0.21899518,68117.0,68116.0,0.08804952]
[1729356919364,0.46919207,68117.0,68116.0,0.08804952]
[1729356919672,0.30855518,68117.0,68116.0,0.08804952]
[1729356920365,0.24249618,68117.0,68108.0,0.0311]
[1729356920567,0.0002,68109.0,68108.0,0.0311]
[1729356920868,0.0002,68109.0,68108.0,0.359049]
[1729356921265,0.0002,68109.0,68108.0,0.35901668]
[1729356921664,0.0002,68109.0,68108.0,0.49854468]
[1729356922373,0.0002,68109.0,68108.0,0.72451964]
[1729356922570,0.0002,68109.0,68108.0,0.6219432]
[1729356923073,0.0002,68109.0,68108.0,0.72446964]
[1729356923871,0.0002,68109.0,68108.0,0.60107112]
[1729356924368,0.0002,68109.0,68108.0,0.49854468]
[1729356925769,0.066267,68109.0,68108.0,0.49854468]
[1729356926273,0.066267,68109.0,68108.0,0.52161245]
[1729356927577,0.066267,68109.0,68108.0,0.32608952]
[1729356935779,0.066267,68109.0,68108.0,0.5217223]
[1729356939280,0.066267,68109.0,68108.0,0.74788184]
[1729356939488,0.066267,68109.0,68108.0,0.6453554]
[1729356939674,0.066267,68109.0,68108.0,0.76278712]
[1729356940379,0.066267,68109.0,68108.0,0.6453554]
[1729356941175,0.066267,68109.0,68108.0,0.76280569]
[1729356941580,0.066267,68109.0,68108.0,0.6453554]
[1729356943577,0.066267,68109.0,68108.0,0.7114234]
[1729356944884,0.066267,68109.0,68108.0,0.71166859]
[1729356947384,0.066267,68109.0,68108.0,0.82911888]
[1729356947775,0.3608,68112.0,68108.0,1.38642207]
[1729356947982,0.09008,68117.0,68111.0,0.3608]
[1729356948178,0.066259,68117.0,68116.0,0.10278736]
[1729356948380,0.0002,68118.0,68116.0,0.3190722]
[1729356948583,0.08988,68124.0,68119.0,0.066057]
[1729356948789,0.155932,68124.0,68123.0,0.3608]
[1729356949087,0.155932,68124.0,68123.0,0.77541411]
[1729356949784,0.066052,68124.0,68123.0,0.77447886]
[1729356950887,0.22142906,68124.0,68123.0,0.57955882]
[1729356955186,0.22132142,68124.0,68123.0,0.57955882]
[1729356957687,0.066052,68124.0,68123.0,0.57955882]
[1729356965902,0.16241564,68124.0,68123.0,0.46204485]
[1729356966194,0.22136937,68124.0,68123.0,0.46204485]
[1729356966389,0.15531737,68124.0,68123.0,0.52809785]
[1729356966588,0.09012,68128.0,68123.0,0.46204485]
[1729356966794,0.04478511,68127.0,68126.0,0.06605]
[1729356967093,0.2056288,68127.0,68126.0,0.06605]
[1729356967294,0.16084369,68127.0,68126.0,0.28674914]
[1729356967496,0.09012,68128.0,68127.0,0.066049]
[1729356967497,0.16104369,68128.0,68127.0,0.066049]
[1729356967694,0.0002,68128.0,68127.0,0.066049]
[1729356967889,0.0002,68128.0,68127.0,0.28629116]
[1729356968698,0.156161,68136.0,68127.0,0.22024216]
[1729356968890,0.066241,68136.0,68134.0,0.3608]
[1729356969088,0.066241,68136.0,68135.0,0.0331]
[1729356969287,0.066241,68136.0,68135.0,0.25298736]
[1729356971702,0.22696767,68136.0,68135.0,0.25298736]
[1729356971896,0.28377964,68136.0,68135.0,0.25298736]
[1729356972098,0.12305297,68136.0,68135.0,0.25298736]
[1729356972293,0.22694615,68136.0,68135.0,0.25298736]
[1729356972601,0.28375812,68136.0,68135.0,0.25298736]
[1729356972799,0.22694615,68136.0,68135.0,0.25298736]
[1729356972997,0.066241,68136.0,68135.0,0.29696812]
[1729356973194,0.066241,68136.0,68135.0,0.25298736]
[1729356973396,0.066241,68136.0,68135.0,0.29696812]
[1729356974403,0.066241,68136.0,68135.0,0.25298736]
[1729356980996,0.1091564,68136.0,68135.0,0.25298736]
[1729356981396,0.16589459,68136.0,68135.0,0.25298736]
[1729356981610,0.21572138,68136.0,68135.0,0.25298736]
[1729356982197,0.21552138,68136.0,68135.0,0.25298736]
[1729356982504,0.14948038,68136.0,68135.0,0.25298736]
[1729356984017,0.14948038,68136.0,68135.0,0.13549827]
[1729356984207,0.21552138,68136.0,68135.0,0.13549827]
[1729356985304,0.21552138,68136.0,68135.0,0.0597976]
[1729356987915,0.066041,68136.0,68135.0,0.0597976]
[1729356988714,0.066041,68136.0,68135.0,0.05858349]
[1729356988899,0.38716898,68137.0,68132.0,0.05858349]
[1729356989103,0.38716898,68137.0,68125.0,0.44883328]
[1729356989104,0.066043,68134.0,68133.0,0.04393906]
[1729356989611,0.066043,68134.0,68132.0,0.04394613]
[1729356989815,0.098243,68133.0,68132.0,0.04394613]
[1729356990019,0.066044,68132.0,68131.0,0.04414613]
[1729356990318,0.156084,68132.0,68131.0,0.04414613]
[1729356991321,0.156084,68132.0,68131.0,0.0002]
[1729356994520,0.156084,68132.0,68131.0,0.04396221]
[1729356994521,0.09004,68132.0,68131.0,0.04396221]
[1729356994708,0.066053,68123.0,68122.0,0.0004]
[1729356995020,0.156093,68123.0,68122.0,0.0004]
[1729356995920,0.156093,68123.0,68122.0,0.091191]
[1729356998323,0.156093,68123.0,68122.0,0.16440502]
[1729356999327,0.156093,68123.0,68122.0,0.0004]
[1729356999915,0.18187358,68123.0,68122.0,0.0004]
[1729357000835,1.22227358,68123.0,68122.0,0.0004]
[1729357003134,1.31285635,68123.0,68122.0,0.0004]
[1729357004334,0.87245635,68123.0,68122.0,0.0004]
[1729357004643,1.67362664,68123.0,68122.0,0.0004]
[1729357005740,1.67362664,68123.0,68122.0,0.00217068]
[1729357006235,1.18457598,68123.0,68122.0,0.00217068]
[1729357007730,1.18457598,68123.0,68122.0,0.00341121]
[1729357009246,1.14267358,68123.0,68122.0,0.00341121]
[1729357009544,1.18430477,68123.0,68122.0,0.00341121]
[1729357010144,0.066057,68119.0,68118.0,0.0002]
[1729357010332,0.10788819,68119.0,68118.0,0.0002]
[1729357010534,0.15604216,68119.0,68118.0,0.0002]
[1729357011142,0.15604216,68119.0,68112.0,0.0002]
[1729357011143,0.066063,68113.0,68112.0,0.0002]
[1729357011333,0.516943,68113.0,68112.0,0.0002]
[1729357013244,0.516943,68113.0,68096.0,0.46456905]
[1729357013245,1.05088,68113.0,68105.0,0.07314761]
[1729357013440,0.066076,68100.0,68079.0,0.10276905]
[1729357013639,0.066071,68105.0,68068.0,0.4928461]
[1729357013640,0.066086,68089.0,68088.0,0.00108]
[1729357013832,0.066086,68089.0,68088.0,0.09303561]
[1729357014036,0.155966,68089.0,68088.0,0.09195561]
[1729357014239,0.066093,68082.0,68081.0,0.3913]
[1729357014539,0.066293,68082.0,68081.0,0.70242953]
[1729357015039,0.0002,68082.0,68081.0,0.70242953]
[1729357015246,0.0002,68082.0,68081.0,1.30242953]
[1729357015431,0.0002,68082.0,68081.0,1.368413]
[1729357015633,0.0002,68082.0,68081.0,1.47520155]
[1729357016340,0.0002,68082.0,68081.0,0.87520155]
[1729357016543,0.3608,68093.0,68081.0,1.84974755]
[1729357016741,0.3608,68093.0,68089.0,0.066086]
[1729357016946,0.3608,68093.0,68090.0,0.0895938]
[1729357017250,0.3608,68093.0,68091.0,0.0895938]
[1729357017546,0.06608,68096.0,68092.0,0.0895938]
[1729357017840,0.06608,68096.0,68093.0,0.18773314]
[1729357018048,0.06608,68096.0,68093.0,0.0984]
[1729357018234,0.066075,68101.0,68093.0,0.31917554]
[1729357018436,0.09172,68100.0,68095.0,0.06628]
[1729357018648,0.066075,68101.0,68095.0,0.0002]
[1729357018945,0.066075,68101.0,68096.0,0.22109815]
[1729357019648,0.066076,68100.0,68096.0,0.22109815]
[1729357020339,0.157796,68100.0,68096.0,0.22109815]
[1729357020540,0.066076,68099.0,68096.0,0.22109815]
[1729357021144,0.066078,68098.0,68096.0,0.22109815]
[1729357021341,0.066078,68097.0,68096.0,0.22109815]
[1729357022148,0.09172,68100.0,68096.0,0.22109815]
[1729357022344,0.066071,68105.0,68096.0,0.22109815]
[1729357022556,0.066078,68098.0,68096.0,0.22109815]
[1729357023156,0.066078,68097.0,68096.0,0.22109815]
[1729357026156,0.066078,68097.0,68096.0,0.3103788]
[1729357028855,0.066079,68096.0,68095.0,0.0004]
[1729357029156,0.066279,68096.0,68095.0,0.08979459]
[1729357031055,0.066279,68096.0,68095.0,0.08983017]
[1729357032163,0.066279,68096.0,68095.0,0.0004]
[1729357036359,0.066279,68096.0,68095.0,0.21991053]
[1729357036360,0.09192,68096.0,68095.0,0.21991053]
[1729357036657,0.09192,68096.0,68095.0,0.37438667]
[1729357037364,0.09192,68096.0,68095.0,0.48129322]
[1729357037365,0.0002,68096.0,68095.0,0.48129322]
[1729357037564,0.032,68113.0,68104.0,0.066071]
[1729357037565,0.066067,68110.0,68104.0,0.066071]
[1729357037753,0.0002,68106.0,68105.0,0.12237614]
[1729357037956,0.0002,68106.0,68105.0,0.34263215]
[1729357040866,0.0002,68106.0,68105.0,0.40870315]
[1729357041066,0.0002,68113.0,68105.0,1.29333601]
[1729357041067,0.09192,68113.0,68105.0,1.29333601]
[1729357041268,0.0440198,68112.0,68107.0,0.0002]
[1729357041457,0.0440198,68111.0,68107.0,0.0002]
[1729357041661,0.0440198,68110.0,68108.0,0.219204]
[1729357041870,0.0002,68113.0,68109.0,0.129767]
[1729357042067,0.04414908,68112.0,68109.0,0.129767]
[1729357042266,0.04414908,68111.0,68110.0,0.219204]
[1729357042471,0.066263,68113.0,68110.0,0.219204]
[1729357042775,0.04414565,68112.0,68110.0,0.219204]
[1729357043071,0.066064,68112.0,68110.0,0.219204]
[1729357043273,0.066065,68111.0,68110.0,0.219204]
[1729357043476,0.11025672,68111.0,68110.0,0.219204]
[1729357044773,0.11014868,68111.0,68110.0,0.219204]
[1729357044976,0.11014868,68111.0,68108.0,0.21926051]
[1729357044977,0.066067,68109.0,68108.0,0.21926051]
[1729357045171,0.11035068,68109.0,68107.0,0.0006]
[1729357045368,0.0002,68108.0,68107.0,0.0006]
[1729357045673,0.0002,68108.0,68107.0,0.22191231]
[1729357047375,0.0002,68109.0,68108.0,0.066068]
[1729357047564,0.0002,68109.0,68108.0,0.506548]
[1729357047765,0.0002,68109.0,68108.0,1.32532072]
[1729357048066,0.0002,68109.0,68108.0,1.5199861]
[1729357049378,0.0002,68109.0,68108.0,1.41409905]
[1729357049680,0.0002,68109.0,68108.0,1.51991942]
[1729357056174,0.0002,68109.0,68108.0,1.32532072]
[1729357058278,0.0002,68109.0,68108.0,0.88484072]
[1729357061274,0.0002,68109.0,68108.0,0.28484072]
[1729357061475,0.0002,68109.0,68108.0,0.88484072]
[1729357063170,0.0002,68109.0,68108.0,0.97364486]
[1729357063579,0.0002,68109.0,68108.0,0.9736676]
[1729357064179,0.0002,68109.0,68108.0,1.07960817]
[1729357064786,0.066267,68109.0,68108.0,1.07960817]
[1729357064983,0.521787,68109.0,68108.0,0.08882688]
[1729357065283,0.521787,68109.0,68108.0,0.31050483]
[1729357066380,0.521787,68109.0,68108.0,0.39848193]
[1729357066774,0.521787,68109.0,68108.0,0.31050483]
[1729357067185,0.521787,68109.0,68108.0,0.41725123]
[1729357067782,0.521787,68109.0,68108.0,0.31050483]
[1729357068386,0.521787,68109.0,68108.0,0.3112706]
[1729357068789,0.521787,68109.0,68108.0,0.41800049]
[1729357069192,0.521787,68109.0,68108.0,0.41801274]
[1729357071287,0.56558938,68109.0,68108.0,0.22167795]
[1729357073685,0.47086938,68109.0,68108.0,0.22167795]
[1729357073886,0.56558938,68109.0,68108.0,0.22167795]
[1729357075291,0.56558938,68109.0,68107.0,0.0006]
[1729357075292,0.066068,68108.0,68107.0,0.0006]
[1729357075493,0.066268,68108.0,68107.0,0.0006]
[1729357075705,0.10985731,68108.0,68107.0,0.0006]
[1729357077085,1.15033731,68108.0,68107.0,0.0006]
[1729357077694,1.19386375,68108.0,68107.0,0.0006]
[1729357077900,1.19386375,68108.0,68100.0,0.0002]
[1729357077901,1.15027444,68108.0,68100.0,0.0002]
[1729357078099,0.066079,68096.0,68094.0,0.0002]
[1729357078401,0.160599,68096.0,68094.0,0.0002]
[1729357080188,0.18701954,68096.0,68094.0,0.0002]
[1729357080588,0.18701954,68096.0,68095.0,0.05897934]
[1729357080790,0.18701954,68096.0,68095.0,0.0004]
[1729357080996,0.18701954,68096.0,68095.0,0.05897922]
[1729357081401,0.09269954,68096.0,68095.0,0.05897922]
[1729357081598,0.09269954,68096.0,68095.0,0.05895986]
[1729357081599,0.18701954,68096.0,68095.0,0.05895986]
[1729357082702,0.18701954,68096.0,68095.0,0.0004]
[1729357083106,0.18701954,68096.0,68095.0,0.05895986]
[1729357083305,0.09269954,68096.0,68095.0,0.05895986]
[1729357083805,0.18701954,68096.0,68095.0,0.0004]
[1729357084106,0.09269954,68096.0,68095.0,0.22105734]
[1729357084291,0.09269954,68096.0,68095.0,0.30966497]
[1729357084292,0.0002,68096.0,68095.0,0.30966497]
[1729357084492,0.0002,68096.0,68095.0,0.34036497]
[1729357085500,0.0002,68096.0,68095.0,0.40644497]
[1729357085700,0.0002,68096.0,68095.0,0.40631949]
[1729357086008,0.0002,68096.0,68095.0,0.51165641]
[1729357087705,0.066279,68096.0,68095.0,0.51165641]
[1729357089508,0.066279,68096.0,68095.0,0.44557641]
[1729357090301,0.066279,68096.0,68095.0,0.44534087]
[1729357093309,0.066279,68096.0,68095.0,0.25175734]
[1729357099603,0.066279,68096.0,68095.0,0.22105734]
[1729357101212,0.066279,68096.0,68095.0,0.3099415]
[1729357107021,0.066279,68096.0,68095.0,0.39789767]
[1729357108513,0.066279,68096.0,68095.0,0.3099415]
[1729357108926,0.066279,68096.0,68095.0,0.39790731]
[1729357109216,0.066279,68096.0,68095.0,0.30995549]
[1729357111307,0.066279,68096.0,68095.0,0.39793575]
[1729357111724,0.066279,68096.0,68095.0,0.30995549]
[1729357113913,0.066279,68096.0,68095.0,0.41605121]
[1729357115632,0.066279,68096.0,68095.0,0.31001248]
[1729357116334,0.066279,68096.0,68095.0,0.22105734]
[1729357117527,0.066279,68096.0,68095.0,0.26506193]